bitfinex/quotes_BTCUSD_20220731
["timestamp","ask_amount","ask_price","bid_price","bid_amount"]
[1659246678673,1.42528105,23759.0,23758.0,0.01508333]
[1659246678892,1.12528105,23759.0,23758.0,0.01508333]
[1659246679112,1.04528105,23759.0,23758.0,0.01508333]
[1659246679980,1.12528105,23759.0,23758.0,0.01508333]
[1659246680215,1.1252069,23759.0,23758.0,0.01508333]
[1659246681335,1.4871069,23759.0,23758.0,0.01508333]
[1659246681586,1.7871069,23759.0,23758.0,0.01508333]
[1659246682321,1.3452069,23759.0,23758.0,0.01508333]
[1659246682988,0.74089478,23759.0,23758.0,0.01508333]
[1659246683220,0.82089478,23759.0,23758.0,0.01508333]
[1659246683876,0.90089478,23759.0,23758.0,0.01508333]
[1659246684123,1.39279478,23759.0,23758.0,0.01508333]
[1659246684332,0.90089478,23759.0,23758.0,0.01508333]
[1659246684548,0.82089478,23759.0,23758.0,0.01508333]
[1659246684789,0.74089478,23759.0,23758.0,0.01508333]
[1659246685892,0.82089478,23759.0,23758.0,0.01508333]
[1659246687297,0.74089478,23759.0,23758.0,0.01508333]
[1659246687970,0.82089478,23759.0,23758.0,0.01508333]
[1659246689823,0.90089478,23759.0,23758.0,0.01508333]
[1659246690315,0.82089478,23759.0,23758.0,0.01508333]
[1659246690537,0.70616071,23759.0,23758.0,0.01508333]
[1659246691908,0.78616071,23759.0,23758.0,0.01508333]
[1659246693254,0.70616071,23759.0,23758.0,0.01508333]
[1659246693983,0.78616071,23759.0,23758.0,0.01508333]
[1659246694203,0.82089478,23759.0,23758.0,0.01508333]
[1659246695331,0.74089478,23759.0,23758.0,0.01508333]
[1659246695995,0.82089478,23759.0,23758.0,0.01508333]
[1659246697408,0.74089478,23759.0,23758.0,0.01508333]
[1659246697667,0.43689778,23759.0,23758.0,0.01508333]
[1659246697884,0.87089478,23759.0,23758.0,0.01508333]
[1659246698150,1.12529497,23759.0,23758.0,0.01508333]
[1659246698596,1.07529497,23759.0,23758.0,0.01508333]
[1659246699266,0.99529497,23759.0,23758.0,0.01508333]
[1659246699934,1.07529497,23759.0,23758.0,0.01508333]
[1659246701317,0.99529497,23759.0,23758.0,0.01508333]
[1659246701643,0.99529497,23759.0,23758.0,0.01500056]
[1659246701868,1.07529497,23759.0,23758.0,0.01500056]
[1659246703223,0.99529497,23759.0,23758.0,0.01500056]
[1659246703870,1.07529497,23759.0,23758.0,0.01500056]
[1659246704822,0.48216371,23759.0,23758.0,0.01500056]
[1659246705279,0.40216371,23759.0,23758.0,0.01500056]
[1659246705952,0.48216371,23759.0,23758.0,0.01500056]
[1659246707270,0.40216371,23759.0,23758.0,0.01500056]
[1659246707504,0.70616071,23759.0,23758.0,0.01500056]
[1659246707725,0.40216371,23759.0,23758.0,0.01500056]
[1659246707950,0.48216371,23759.0,23758.0,0.01500056]
[1659246708141,0.78616071,23759.0,23758.0,0.01500056]
[1659246708416,0.51689778,23759.0,23758.0,0.01500056]
[1659246708638,0.82089478,23759.0,23758.0,0.01500056]
[1659246709346,0.74089478,23759.0,23758.0,0.01500056]
[1659246710013,0.82089478,23759.0,23758.0,0.01500056]
[1659246711369,0.74089478,23759.0,23758.0,0.01500056]
[1659246712039,0.82089478,23759.0,23758.0,0.01500056]
[1659246713220,0.74089478,23759.0,23758.0,0.01500056]
[1659246713899,0.81989478,23759.0,23758.0,0.01500056]
[1659246715265,0.74089478,23759.0,23758.0,0.01500056]
[1659246715933,0.81989478,23759.0,23758.0,0.01500056]
[1659246717298,0.74089478,23759.0,23758.0,0.01500056]
[1659246717974,0.82089478,23759.0,23758.0,0.01500056]
[1659246719299,0.74089478,23759.0,23758.0,0.01500056]
[1659246720000,0.82089478,23759.0,23758.0,0.01500056]
[1659246723147,0.74089478,23759.0,23758.0,0.01500056]
[1659246724055,0.82089478,23759.0,23758.0,0.01500056]
[1659246725233,0.74089478,23759.0,23758.0,0.01500056]
[1659246725894,0.82089478,23759.0,23758.0,0.01500056]
[1659246727187,0.74089478,23759.0,23758.0,0.01500056]
[1659246728847,0.82089478,23759.0,23758.0,0.01500056]
[1659246730200,0.74089478,23759.0,23758.0,0.01500056]
[1659246731622,0.30405791,23759.0,23758.0,0.01500056]
[1659246731836,0.001,23765.0,23760.0,0.05]
[1659246732075,0.001,23765.0,23764.0,0.07004896]
[1659246732323,0.001,23765.0,23764.0,0.37402896]
[1659246732556,0.001,23765.0,23764.0,0.89966087]
[1659246733239,0.001,23765.0,23764.0,0.68935687]
[1659246733714,0.001,23765.0,23764.0,0.38935687]
[1659246733969,0.001,23765.0,23764.0,0.40435687]
[1659246734204,0.001,23765.0,23764.0,0.10004952]
[1659246734439,0.10199,23765.0,23764.0,0.10004952]
[1659246734661,0.10199,23765.0,23764.0,0.03000056]
[1659246734662,0.35636021,23765.0,23764.0,0.03000056]
[1659246734894,0.56741133,23765.0,23764.0,0.03000056]
[1659246735127,0.60208449,23765.0,23764.0,0.03000056]
[1659246735352,0.6021454,23765.0,23764.0,0.01500056]
[1659246736100,0.6821454,23765.0,23764.0,0.01500056]
[1659246737002,1.1240454,23765.0,23757.0,0.30013927]
[1659246737216,1.24915733,23762.0,23757.0,0.00013927]
[1659246737441,1.05,23758.0,23757.0,0.00013927]
[1659246737666,1.7959714,23758.0,23750.0,0.3]
[1659246737892,0.40725733,23757.0,23750.0,0.70725733]
[1659246738372,0.40725733,23757.0,23750.0,0.40725733]
[1659246738591,0.40725733,23757.0,23750.0,0.40746031]
[1659246738836,0.40725733,23757.0,23750.0,0.40246031]
[1659246739282,0.40725733,23757.0,23750.0,0.40225733]
[1659246740056,0.40725733,23757.0,23750.0,0.48025733]
[1659246740287,0.40725733,23757.0,23752.0,0.05]
[1659246740525,0.40725733,23757.0,23753.0,0.30398]
[1659246740770,0.40725733,23757.0,23752.0,0.35398]
[1659246741254,0.40725733,23757.0,23753.0,0.30398]
[1659246741476,0.40725733,23757.0,23752.0,0.05]
[1659246741707,0.40725733,23757.0,23752.0,0.35398]
[1659246741936,0.40725733,23757.0,23753.0,0.079]
[1659246742841,0.40725733,23757.0,23753.0,0.38298]
[1659246743342,0.40725733,23757.0,23753.0,0.30398]
[1659246744009,0.40725733,23757.0,23753.0,0.38298]
[1659246744223,0.40725733,23757.0,23753.0,0.079]
[1659246744438,0.40725733,23757.0,23753.0,0.38298]
[1659246744657,6.091e-05,23756.0,23753.0,0.38298]
[1659246744883,0.40725733,23757.0,23753.0,0.38298]
[1659246745325,0.40725733,23757.0,23753.0,0.30398]
[1659246746005,0.40725733,23757.0,23753.0,0.079]
[1659246746274,0.40725733,23757.0,23753.0,0.38298]
[1659246746489,0.40725733,23757.0,23754.0,0.30967737]
[1659246746708,0.40725733,23757.0,23754.0,0.00569737]
[1659246747874,0.40725733,23757.0,23754.0,0.08569737]
[1659246748111,0.4419914,23757.0,23754.0,0.08569737]
[1659246748349,0.40725733,23757.0,23754.0,0.08569737]
[1659246748806,0.40725733,23757.0,23755.0,0.30398]
[1659246749029,0.40725733,23757.0,23754.0,0.08569737]
[1659246749244,0.40725733,23757.0,23754.0,0.00569737]
[1659246749846,0.40725733,23757.0,23752.0,0.34026366]
[1659246750064,0.40725733,23757.0,23753.0,0.30398]
[1659246750277,0.40725733,23757.0,23754.0,0.30967737]
[1659246750519,0.40725733,23757.0,23752.0,0.05]
[1659246750750,0.3,23756.0,23754.0,0.079]
[1659246750937,0.40725733,23757.0,23754.0,0.079]
[1659246751749,0.03473407,23756.0,23754.0,0.079]
[1659246751952,0.40725733,23757.0,23754.0,0.158]
[1659246752757,0.40725733,23757.0,23752.0,0.3]
[1659246752969,0.40725733,23757.0,23753.0,0.30398]
[1659246753183,0.40725733,23757.0,23752.0,0.3]
[1659246753905,0.40725733,23757.0,23753.0,0.30398]
[1659246754122,0.03473407,23756.0,23752.0,0.079]
[1659246754311,0.40725733,23757.0,23753.0,0.30398]
[1659246754530,0.40725733,23757.0,23752.0,0.079]
[1659246754768,0.40725733,23757.0,23753.0,0.30398]
[1659246755275,0.40725733,23757.0,23754.0,0.00028486]
[1659246755497,0.03473407,23756.0,23754.0,0.00028486]
[1659246755741,0.03473407,23756.0,23755.0,0.304008]
[1659246755946,0.40725733,23757.0,23754.0,0.079]
[1659246756394,0.40725733,23757.0,23754.0,0.07928486]
[1659246757208,0.40725733,23757.0,23754.0,0.00028486]
[1659246757428,0.4419914,23757.0,23754.0,0.00028486]
[1659246757862,0.4419914,23757.0,23752.0,0.35]
[1659246758089,0.4419914,23757.0,23753.0,0.304008]
[1659246758318,0.4419914,23757.0,23752.0,0.35]
[1659246758577,0.4419914,23757.0,23753.0,0.304008]
[1659246758795,0.4419914,23757.0,23754.0,0.383008]
[1659246759076,0.4419914,23757.0,23754.0,0.079]
[1659246759729,0.03473407,23757.0,23755.0,0.00028484]
[1659246759955,0.3875,23760.0,23755.0,0.00028484]
[1659246760190,0.40725733,23759.0,23756.0,0.07004896]
[1659246760400,0.40725733,23759.0,23755.0,0.30028484]
[1659246761075,0.40725733,23759.0,23755.0,0.00028484]
[1659246761547,0.79475733,23760.0,23755.0,0.30028484]
[1659246761761,0.79475733,23760.0,23755.0,0.00028484]
[1659246761985,0.05,23759.0,23755.0,0.00028484]
[1659246763156,0.79475733,23760.0,23755.0,0.00028484]
[1659246764032,0.85775733,23760.0,23753.0,0.5104]
[1659246764253,0.85775733,23760.0,23753.0,0.2104]
[1659246765354,0.79475733,23760.0,23753.0,0.2104]
[1659246766029,0.85775733,23760.0,23753.0,0.2104]
[1659246766521,0.85775733,23760.0,23754.0,0.3]
[1659246766788,0.85775733,23760.0,23753.0,0.2104]
[1659246767224,0.79475733,23760.0,23753.0,0.2104]
[1659246767915,0.85775733,23760.0,23753.0,0.2104]
[1659246769349,0.79475733,23760.0,23753.0,0.2104]
[1659246770067,0.85775733,23760.0,23753.0,0.2104]
[1659246771216,0.79475733,23760.0,23753.0,0.2104]
[1659246771889,0.85775733,23760.0,23753.0,0.2104]
[1659246773265,0.79475733,23760.0,23753.0,0.2104]
[1659246773958,0.85775733,23760.0,23753.0,0.2104]
[1659246774637,0.85775733,23760.0,23752.0,0.3]
[1659246774865,0.85775733,23760.0,23753.0,0.2104]
[1659246775308,0.79475733,23760.0,23753.0,0.2104]
[1659246775958,0.85775733,23760.0,23753.0,0.2104]
[1659246776381,0.47025733,23760.0,23753.0,0.2104]
[1659246777062,0.47025733,23760.0,23753.0,0.5104]
[1659246777293,0.47025733,23760.0,23753.0,0.2104]
[1659246777749,0.40725733,23760.0,23753.0,0.2104]
[1659246777962,0.47025733,23760.0,23753.0,0.61765733]
[1659246778249,0.47025733,23760.0,23753.0,0.2104]
[1659246779352,0.40717352,23760.0,23753.0,0.61765733]
[1659246779581,0.40717352,23760.0,23754.0,0.3]
[1659246779812,0.40717352,23760.0,23753.0,0.61765733]
[1659246780237,0.47017352,23760.0,23753.0,0.61765733]
[1659246780459,0.47017352,23760.0,23753.0,0.2104]
[1659246781592,0.40717352,23760.0,23753.0,0.2104]
[1659246782085,0.47017352,23760.0,23753.0,0.2104]
[1659246782516,0.47017352,23760.0,23753.0,0.5104]
[1659246783165,0.40717352,23760.0,23753.0,0.5104]
[1659246783378,0.40717352,23760.0,23754.0,0.3]
[1659246783607,0.40717352,23760.0,23753.0,0.91765733]
[1659246783826,0.40717352,23760.0,23754.0,0.3]
[1659246784053,0.47017352,23760.0,23753.0,0.91765733]
[1659246784270,0.47017352,23760.0,23754.0,0.3]
[1659246786604,0.40725733,23759.0,23753.0,0.2104]
[1659246786830,0.335578,23758.0,23750.0,0.00014699]
[1659246787084,0.77038933,23757.0,23750.0,0.00014699]
[1659246787311,0.71126533,23756.0,23750.0,0.00014699]
[1659246787568,0.05,23751.0,23750.0,6.99e-06]
[1659246787811,0.05,23751.0,23741.0,0.0011]
[1659246787812,1.14593849,23751.0,23741.0,0.0011]
[1659246788033,0.50196933,23750.0,23741.0,0.0011]
[1659246788274,0.40725733,23748.0,23741.0,0.0011]
[1659246788514,0.3,23747.0,23741.0,0.0011]
[1659246788737,0.70725733,23748.0,23741.0,0.211609]
[1659246788953,0.40725733,23748.0,23742.0,0.304008]
[1659246789209,0.40725733,23748.0,23741.0,0.211609]
[1659246789435,0.40725733,23748.0,23742.0,0.304008]
[1659246789679,0.40725733,23748.0,23741.0,0.211609]
[1659246789911,0.40725733,23748.0,23741.0,0.561609]
[1659246790575,0.40725733,23748.0,23741.0,0.511609]
[1659246790839,0.40725733,23748.0,23741.0,0.211609]
[1659246791021,0.3,23747.0,23741.0,0.211609]
[1659246791907,0.40725733,23748.0,23741.0,0.211609]
[1659246792831,0.3,23747.0,23741.0,0.0011]
[1659246794689,1.37295063,23747.0,23741.0,0.0011]
[1659246795820,0.40725733,23746.0,23741.0,0.0011]
[1659246796062,0.604008,23745.0,23741.0,0.0011]
[1659246796279,0.5051234,23744.0,23741.0,0.0011]
[1659246796516,0.05,23742.0,23741.0,0.0011]
[1659246796750,0.52038933,23742.0,23741.0,0.0011]
[1659246796979,0.45725733,23742.0,23741.0,0.0011]
[1659246797308,0.5938,23745.0,23741.0,0.0011]
[1659246797430,0.5791,23747.0,23741.0,0.0011]
[1659246797653,0.40725733,23746.0,23741.0,0.0011]
[1659246797892,0.70725733,23746.0,23741.0,0.0011]
[1659246798116,0.40725733,23745.0,23741.0,0.0011]
[1659246798337,0.03473407,23744.0,23741.0,0.0011]
[1659246799228,0.3,23746.0,23741.0,0.0011]
[1659246799459,0.8938,23748.0,23741.0,0.0011]
[1659246799674,1.30105733,23748.0,23741.0,0.0011]
[1659246800594,0.40725733,23747.0,23741.0,0.0011]
[1659246805369,0.3,23746.0,23741.0,0.0011]
[1659246805583,0.70725733,23746.0,23741.0,0.0011]
[1659246806474,0.40725733,23746.0,23741.0,0.0011]
[1659246807374,0.304008,23745.0,23741.0,0.0011]
[1659246807612,0.40725733,23746.0,23741.0,0.0011]
[1659246807826,0.03473407,23744.0,23741.0,0.0011]
[1659246808052,0.40725733,23746.0,23741.0,0.0011]
[1659246809655,0.70725733,23746.0,23741.0,0.0011]
[1659246809869,0.40725733,23745.0,23741.0,0.0011]
[1659246810310,0.03435909,23744.0,23741.0,0.0011]
[1659246811176,0.40725733,23745.0,23741.0,0.0011]
[1659246811858,0.40725733,23745.0,23742.0,0.00037499]
[1659246812337,0.8938,23748.0,23742.0,0.00037499]
[1659246812338,0.40725733,23747.0,23742.0,0.00037499]
[1659246812544,0.3,23746.0,23742.0,0.00037499]
[1659246812812,0.70725733,23746.0,23742.0,0.00037499]
[1659246813444,0.70725733,23746.0,23741.0,0.0011]
[1659246813671,0.40725733,23746.0,23741.0,0.0011]
[1659246816294,0.304008,23745.0,23741.0,0.0011]
[1659246816731,0.03435908,23744.0,23741.0,0.0011]
[1659246818101,0.02591943,23744.0,23741.0,0.0011]
[1659246818561,0.304008,23743.0,23741.0,0.0011]
[1659246818806,0.38159,23742.0,23741.0,0.0011]
[1659246819029,1.11617933,23742.0,23741.0,0.0011]
[1659246819256,1.08458933,23742.0,23741.0,0.0011]
[1659246819690,1.11617933,23742.0,23741.0,0.0011]
[1659246820176,2.17696832,23742.0,23741.0,0.0011]
[1659246820429,1.11617933,23742.0,23741.0,0.0011]
[1659246820647,1.08458933,23742.0,23741.0,0.0011]
[1659246821105,2.04178808,23742.0,23741.0,0.0011]
[1659246821566,1.08458933,23742.0,23741.0,0.0011]
[1659246823334,0.97145733,23742.0,23741.0,0.0011]
[1659246823572,0.40725733,23742.0,23741.0,0.0011]
[1659246823810,0.02591943,23744.0,23741.0,0.0011]
[1659246825024,0.71126533,23743.0,23741.0,0.0011]
[1659246825231,0.52038933,23742.0,23741.0,0.0011]
[1659246825468,0.45725733,23742.0,23741.0,0.0011]
[1659246826859,0.02591943,23744.0,23741.0,0.0011]
[1659246826860,0.32591943,23744.0,23741.0,0.0011]
[1659246827261,0.05,23742.0,23741.0,0.0011]
[1659246828149,0.02591943,23744.0,23741.0,0.0011]
[1659246829962,0.304008,23743.0,23741.0,0.0011]
[1659246830184,0.10491943,23744.0,23741.0,0.0011]
[1659246831717,0.02591943,23744.0,23741.0,0.0011]
[1659246831939,0.10491943,23744.0,23741.0,0.0011]
[1659246832596,0.079,23744.0,23741.0,0.0011]
[1659246833307,0.8973,23746.0,23741.0,0.0011]
[1659246833535,0.71126533,23745.0,23741.0,0.0011]
[1659246833766,0.365,23748.0,23742.0,0.00875372]
[1659246834017,0.079,23746.0,23742.0,0.00875372]
[1659246834953,0.48625733,23746.0,23741.0,0.0011]
[1659246835180,0.40725733,23746.0,23741.0,0.0011]
[1659246837991,0.47825733,23746.0,23741.0,0.0011]
[1659246839352,0.40725733,23746.0,23741.0,0.0011]
[1659246839637,0.604008,23745.0,23741.0,0.0011]
[1659246839866,0.02591944,23744.0,23741.0,0.0011]
[1659246840080,0.3,23745.0,23742.0,0.00875372]
[1659246840299,0.3,23745.0,23741.0,0.0011]
[1659246840954,0.02591944,23744.0,23741.0,0.0011]
[1659246846154,0.304008,23743.0,23741.0,0.0011]
[1659246846369,0.05,23742.0,23741.0,0.00098089]
[1659246846818,0.02591944,23744.0,23741.0,0.00098089]
[1659246847051,0.304008,23743.0,23741.0,0.00098089]
[1659246847314,0.05,23742.0,23741.0,0.00098089]
[1659246847735,0.43317677,23744.0,23741.0,0.00098089]
[1659246847959,0.05,23742.0,23741.0,0.00098089]
[1659246850007,0.5454,23743.0,23741.0,0.00098089]
[1659246850242,0.05,23742.0,23741.0,0.00098089]
[1659246853214,0.95265733,23743.0,23741.0,0.00098089]
[1659246853871,0.05,23742.0,23741.0,0.00098089]
[1659246854303,0.95265733,23743.0,23741.0,0.00098089]
[1659246855554,0.05,23742.0,23741.0,0.00098089]
[1659246855773,0.95265733,23743.0,23741.0,0.00098089]
[1659246860732,0.95265733,23743.0,23741.0,0.00973461]
[1659246860942,0.95265733,23743.0,23741.0,0.00098089]
[1659246861532,0.5796,23747.0,23741.0,0.00098089]
[1659246861746,0.40725733,23746.0,23741.0,0.00098089]
[1659246863874,0.48625733,23746.0,23741.0,0.00098089]
[1659246864547,0.00392011,23741.0,23740.0,0.3]
[1659246864770,0.00392011,23741.0,23740.0,0.61276172]
[1659246865337,0.02983955,23741.0,23740.0,0.304008]
[1659246865549,0.00392011,23741.0,23740.0,0.304008]
[1659246866491,0.00392011,23741.0,23739.0,0.304008]
[1659246866701,0.00392011,23741.0,23740.0,0.37405696]
[1659246867508,0.02983955,23741.0,23740.0,0.37405696]
[1659246867784,0.02983955,23741.0,23740.0,0.07004896]
[1659246868007,0.00392011,23741.0,23740.0,0.37405696]
[1659246868920,0.00392011,23741.0,23740.0,0.38017504]
[1659246871382,0.00392011,23741.0,23740.0,0.37405696]
[1659246871611,0.00392011,23741.0,23740.0,0.38017504]
[1659246872041,0.00392011,23741.0,23740.0,0.37405696]
[1659246872960,0.00392011,23741.0,23740.0,0.07004896]
[1659246873863,0.00392011,23741.0,23739.0,0.304008]
[1659246874426,0.00392011,23741.0,23740.0,0.07004896]
[1659246874656,0.00392011,23741.0,23740.0,0.37405696]
[1659246875302,0.00392011,23741.0,23740.0,0.38281068]
[1659246875971,0.00392011,23741.0,23740.0,0.304008]
[1659246880958,0.00392011,23741.0,23739.0,0.31306762]
[1659246881201,0.00392011,23741.0,23739.0,0.72032495]
[1659246881425,0.00392011,23741.0,23740.0,0.37405696]
[1659246885786,0.00392011,23741.0,23740.0,0.304008]
[1659246886020,0.00392011,23741.0,23739.0,0.40725733]
[1659246886247,0.00392011,23741.0,23740.0,0.304008]
[1659246886465,0.02983955,23741.0,23740.0,0.304008]
[1659246886686,0.00392011,23741.0,23740.0,0.304008]
[1659246886900,0.00392011,23741.0,23740.0,0.31276172]
[1659246887822,0.00392011,23741.0,23740.0,0.61276172]
[1659246888282,0.00392011,23741.0,23740.0,0.6138813]
[1659246888505,0.00392011,23741.0,23740.0,0.3138813]
[1659246889399,0.00383999,23741.0,23740.0,0.3138813]
[1659246890097,0.00383999,23741.0,23740.0,0.304008]
[1659246890332,0.00383999,23741.0,23740.0,1.01126533]
[1659246891997,0.00383999,23741.0,23740.0,0.71126533]
[1659246893087,0.00383999,23741.0,23740.0,1.01126533]
[1659246893788,0.00383999,23741.0,23740.0,1.11126533]
[1659246894007,0.00383999,23741.0,23740.0,0.71126533]
[1659246894229,0.00383999,23741.0,23740.0,1.01126533]
[1659246895365,0.00383999,23741.0,23740.0,0.71126533]
[1659246896228,0.00383999,23741.0,23740.0,1.11126533]
[1659246896439,0.00383999,23741.0,23740.0,1.41126533]
[1659246896889,0.00383999,23741.0,23740.0,1.11126533]
[1659246897349,0.00383999,23741.0,23740.0,1.69666533]
[1659246900426,0.00383999,23741.0,23740.0,1.59666533]
[1659246906612,0.00383999,23741.0,23740.0,1.64666533]
[1659246907043,0.00383999,23741.0,23740.0,1.69666533]
[1659246907965,0.00383999,23741.0,23740.0,1.59666533]
[1659246909363,0.00383999,23741.0,23740.0,1.29666533]
[1659246909588,0.00383999,23741.0,23740.0,1.59666533]
[1659246910038,0.00383999,23741.0,23740.0,1.69666533]
[1659246910925,0.00376073,23741.0,23740.0,1.64666533]
[1659246911129,0.00376073,23741.0,23740.0,1.59666533]
[1659246911580,0.00376073,23741.0,23740.0,1.69666533]
[1659246912247,0.00376073,23741.0,23740.0,1.64666533]
[1659246913219,0.00376073,23741.0,23740.0,1.69666533]
[1659246913467,0.00376073,23741.0,23740.0,1.88699007]
[1659246913671,0.00376073,23741.0,23740.0,1.93699007]
[1659246913897,0.00376073,23741.0,23740.0,1.9869265]
[1659246915157,0.00376073,23741.0,23740.0,1.69660176]
[1659246915373,0.00376073,23741.0,23740.0,1.59666533]
[1659246919959,0.00376073,23741.0,23740.0,1.29666533]
[1659246922245,0.00376073,23741.0,23740.0,0.71126533]
[1659246922455,0.00376073,23741.0,23739.0,0.3917]
[1659246922663,0.00376073,23741.0,23737.0,0.5687]
[1659246923372,0.00376073,23741.0,23738.0,0.00899192]
[1659246924054,0.5821,23744.0,23738.0,0.00899192]
[1659246924055,0.352308,23747.0,23738.0,0.00899192]
[1659246924298,0.61783033,23746.0,23738.0,0.30899192]
[1659246924519,0.40725733,23745.0,23738.0,0.30899192]
[1659246924840,0.40725733,23745.0,23738.0,0.00899192]
[1659246925045,0.304008,23744.0,23738.0,0.00899192]
[1659246925266,0.40725733,23743.0,23738.0,0.00899192]
[1659246927322,0.40725733,23743.0,23736.0,0.80214111]
[1659246927537,0.40725733,23743.0,23736.0,1.20939844]
[1659246927975,0.40725733,23743.0,23736.0,1.20925733]
[1659246929749,0.40725733,23743.0,23737.0,0.3]
[1659246930011,0.40725733,23743.0,23737.0,0.8]
[1659246931371,0.40725733,23743.0,23736.0,1.20925733]
[1659246934862,0.29979851,23742.0,23736.0,0.40925733]
[1659246935063,0.05,23737.0,23736.0,0.002]
[1659246935263,0.82591944,23737.0,23736.0,0.002]
[1659246935498,1.83718477,23737.0,23736.0,0.002]
[1659246935933,1.86878477,23737.0,23736.0,0.002]
[1659246936584,1.86878477,23737.0,23734.0,0.002]
[1659246936585,0.4939,23736.0,23734.0,0.002]
[1659246936827,2.06265833,23735.0,23734.0,0.002]
[1659246937042,1.03105833,23735.0,23734.0,0.002]
[1659246937486,1.50455833,23735.0,23734.0,0.002]
[1659246937742,1.55455833,23735.0,23734.0,0.002]
[1659246937959,0.4939,23734.0,23733.0,0.002]
[1659246938166,1.83676533,23734.0,23733.0,0.002]
[1659246938371,0.79486533,23734.0,23733.0,0.002]
[1659246938581,1.12376533,23734.0,23733.0,0.002]
[1659246938796,0.71326533,23734.0,23733.0,0.002]
[1659246940248,0.40925733,23734.0,23733.0,0.002]
[1659246940455,0.75526533,23734.0,23733.0,0.002]
[1659246941776,0.71326533,23734.0,23733.0,0.002]
[1659246942455,0.75526533,23734.0,23733.0,0.002]
[1659246942696,0.75326533,23734.0,23733.0,0.002]
[1659246942918,0.44925733,23734.0,23733.0,0.002]
[1659246943138,0.75326533,23734.0,23733.0,0.002]
[1659246943553,0.346008,23734.0,23733.0,0.002]
[1659246943802,0.346008,23734.0,23733.0,0.04645]
[1659246943803,0.042,23734.0,23733.0,0.04645]
[1659246944687,0.042,23734.0,23733.0,0.01075372]
[1659246944894,1.195633,23739.0,23733.0,0.002]
[1659246945112,0.71126533,23738.0,23735.0,0.5]
[1659246945414,0.47038933,23737.0,23735.0,0.5]
[1659246945656,0.71126533,23736.0,23735.0,0.5]
[1659246946311,0.304008,23736.0,23735.0,0.5]
[1659246947164,0.32992744,23736.0,23735.0,0.5]
[1659246947630,0.08097009,23734.0,23733.0,0.002]
[1659246947886,0.03097009,23734.0,23733.0,0.01075372]
[1659246948285,0.03097009,23734.0,23733.0,0.002]
[1659246949172,0.05,23730.0,23728.0,0.002]
[1659246949383,1.55725733,23729.0,23728.0,0.002]
[1659246949617,1.66126533,23729.0,23728.0,0.002]
[1659246949838,1.1,23727.0,23724.0,0.0011]
[1659246950078,0.54630877,23727.0,23724.0,0.0011]
[1659246950302,0.48317677,23727.0,23724.0,0.0011]
[1659246950528,1.08718477,23727.0,23724.0,0.0011]
[1659246950788,0.05,23725.0,23717.0,0.3]
[1659246951028,0.05,23725.0,23723.0,0.015]
[1659246951246,0.210742,23728.0,23723.0,0.015]
[1659246951499,0.71126533,23727.0,23719.0,0.03162]
[1659246951721,0.40725733,23727.0,23720.0,0.40725733]
[1659246952402,0.70725733,23727.0,23720.0,0.40725733]
[1659246952639,0.304008,23726.0,23720.0,0.40725733]
[1659246952853,0.70725733,23727.0,23720.0,0.40725733]
[1659246953116,0.304008,23726.0,23720.0,0.40725733]
[1659246953341,0.304008,23726.0,23719.0,0.00019644]
[1659246953342,0.40725733,23726.0,23719.0,0.00019644]
[1659246953562,0.40725733,23726.0,23718.0,0.40725733]
[1659246954016,0.3,23725.0,23718.0,0.40725733]
[1659246954232,0.40725733,23724.0,23718.0,0.00011001]
[1659246954455,0.75,23719.0,23718.0,0.00011001]
[1659246954680,0.02591944,23719.0,23718.0,0.00011001]
[1659246954894,0.82646733,23724.0,23718.0,0.00011001]
[1659246954895,0.40725733,23724.0,23718.0,0.00875372]
[1659246955111,0.40725733,23723.0,23715.0,0.3011]
[1659246955354,0.40725733,23723.0,23716.0,0.299008]
[1659246955616,0.40725733,23723.0,23717.0,0.304008]
[1659246955820,0.40725733,23723.0,23715.0,0.40835733]
[1659246956026,0.5,23722.0,23716.0,0.304345]
[1659246956233,0.5,23722.0,23715.0,0.44846735]
[1659246956234,0.90725733,23722.0,23715.0,0.44846735]
[1659246956441,0.40725733,23722.0,23716.0,0.604345]
[1659246956680,0.40725733,23722.0,23717.0,0.304345]
[1659246956914,0.40725733,23722.0,23715.0,0.39835733]
[1659246957132,0.602954,23725.0,23716.0,0.604345]
[1659246957133,0.40725733,23723.0,23716.0,0.604345]
[1659246957342,0.40725733,23723.0,23717.0,0.354345]
[1659246957554,0.40725733,23723.0,23718.0,0.304345]
[1659246957770,0.40725733,23723.0,23719.0,0.304345]
[1659246957998,0.02591944,23722.0,23716.0,1.29745733]
[1659246958255,0.02591944,23722.0,23717.0,0.304345]
[1659246958462,0.02591944,23722.0,23718.0,0.71160233]
[1659246958690,0.02591944,23722.0,23718.0,0.40725733]
[1659246958898,0.02591944,23722.0,23719.0,0.304345]
[1659246959120,0.02591944,23722.0,23716.0,0.8902]
[1659246959377,0.02591944,23722.0,23717.0,0.76152629]
[1659246959622,0.02591944,23722.0,23718.0,0.604345]
[1659246959847,1.4,23720.0,23719.0,0.304345]
[1659246960046,1.4,23720.0,23716.0,0.5902]
[1659246960256,1.4,23720.0,23717.0,0.304345]
[1659246960464,1.4,23720.0,23718.0,0.304345]
[1659246960686,1.80725733,23720.0,23719.0,0.304345]
[1659246960890,1.80725733,23720.0,23716.0,0.5902]
[1659246961307,1.80725733,23720.0,23714.0,0.41047]
[1659246961526,1.4,23720.0,23715.0,0.40725733]
[1659246961747,1.4,23720.0,23716.0,0.304345]
[1659246961979,1.4,23720.0,23719.0,0.07004896]
[1659246962166,1.4,23720.0,23717.0,0.41601105]
[1659246962380,1.4,23720.0,23718.0,0.71160233]
[1659246962588,1.4,23720.0,23719.0,1.13165129]
[1659246962802,0.905,23720.0,23719.0,1.21327129]
[1659246963020,0.905,23720.0,23719.0,1.22591477]
[1659246963430,0.5072,23720.0,23719.0,1.22591477]
[1659246963635,0.4014,23720.0,23719.0,1.26987468]
[1659246963856,0.4014,23720.0,23719.0,1.27443147]
[1659246964300,0.4014,23720.0,23719.0,1.2256112]
[1659246964566,0.4014,23720.0,23719.0,0.47730629]
[1659246964786,0.4014,23720.0,23719.0,0.304345]
[1659246965025,0.4014,23720.0,23718.0,0.304345]
[1659246965269,0.4014,23720.0,23718.0,0.71160233]
[1659246965486,0.4014,23720.0,23719.0,0.304345]
[1659246966155,0.4014,23720.0,23719.0,0.354345]
[1659246966373,0.4014,23720.0,23719.0,0.704345]